[Event "94th FRA-ch Accession 2019"]
[Site "Chartres"]
[Date "2019.08.25"]
[Round "9.3"]
[White "Velten, Paul"]
[Black "Philippe, Guillaume"]
[Result "1/2-1/2"]
[ECO "A80"]
[WhiteElo "2527"]
[BlackElo "2321"]
[Annotator "ChessBase"]
[PlyCount "103"]
[EventDate "2019.08.17"]
[EventType "swiss"]
[EventCountry "FRA"]
[SourceTitle "playchess.com"]
[Source "ChessBase"]
[SourceQuality "1"]
[TimeControl "40/5400+30:1800+30"]

1. d4 {[%emt 0:00:00]} f5 {[%emt 0:00:00]} 2. Bg5 {[%emt 0:01:33]} h6 {[%emt 0:00:00]} 3. Bh4 {[%emt 0:00:12]} g5 {[%emt 0:00:03]} 4. Bg3 {[%emt 0:00:31]} Nf6 {[%emt 0:00:22]} 5. e3 {[%emt 0:00:05]} Bg7 {[%emt 0:00:42]} 6. Nc3 {[%emt 0:02:00]} O-O {[%emt 0:02:53]} 7. Bd3 {[%emt 0:03:54]} d6 {[%emt 0:02:28]} 8. Qd2 {[%emt 0:04:56]} Nc6 {[%emt 0:03:15]} 9. O-O-O {[%emt 0:00:46]} a6 {[%emt 0:10:42]} 10. Nge2 {[%emt 0:03:54]} Qe8 {[%emt 0:01:45]} 11. h4 {[%emt 0:00:54]} g4 {[%emt 0:00:07]} 12. e4 {[%emt 0:02:00]} fxe4 {[%emt 0:01:10]} 13. Nxe4 {[%emt 0:00:13]} Nh5 {[%emt 0:01:20]} 14. Kb1 {[%emt 0:13:19]} e5 {[%emt 0:01:36]} 15. d5 {[%emt 0:07:52]} Ne7 {[%emt 0:00:13]} 16. f3 {[%emt 0:00:35]} b5 {[%emt 0:03:27]} 17. Bf2 {[%emt 0:03:48]} Nxd5 {[%emt 0:02:16]} 18. N4g3 {[%emt 0:00:18]} c6 {[%emt 0:15:41]} 19. c3 {[%emt 0:21:16]} Nxg3 {[%emt 0:09:15]} 20. Nxg3 {[%emt 0:00:20]} Nf4 {[%emt 0:00:10]} 21. Bc2 {[%emt 0:00:21]} d5 {[%emt 0:01:08]} 22. Bc5 {[%emt 0:01:02]} Rf6 {[%emt 0:01:58]} 23. Ka1 {[%emt 0:00:16]} Nh5 {[%emt 0:02:34]} 24. Nf1 {[%emt 0:02:14]} gxf3 {[%emt 0:07:19]} 25. gxf3 {[%emt 0:00:04]} Bf5 {[%emt 0:00:24]} 26. Bb3 {[%emt 0:02:38]} Rd8 {[%emt 0:00:45]} 27. Ne3 {[%emt 0:01:25]} Bg6 {[%emt 0:00:04]} 28. Ng4 {[%emt 0:00:29]} Rxf3 {[%emt 0:00:35]} 29. Nxh6+ {[%emt 0:01:16]} Kh7 {[%emt 0:00:06]} 30. Ng4 {[%emt 0:00:06]} Qe6 {[%emt 0:01:07]} 31. Rhg1 {[%emt 0:01:15]} Rd7 {[%emt 0:02:11]} 32. Rde1 {[%emt 0:00:12]} e4 {[%emt 0:01:59]} 33. Bd4 {[%emt 0:01:21]} Rg3 {[%emt 0:02:28]} 34. Bd1 {[%emt 0:03:27]} Bf5 {[%emt 0:05:03]} 35. Ne3 {[%emt 0:00:29]} Bxd4 {[%emt 0:01:06]} 36. cxd4 {[%emt 0:01:54]} Rdg7 {[%emt 0:00:37]} 37. Rgf1 {[%emt 0:00:05]} Bh3 {[%emt 0:01:30]} 38. Bxh5 {[%emt 0:03:03]} Bxf1 {[%emt 0:00:13]} 39. Nxf1 {[%emt 0:00:14]} Rg2 {[%emt 0:00:25]} 40. Qf4 {[%emt 0:00:30]} Qh3 {[%emt 0:03:16]} 41. Rb1 {[%emt 0:43:49]} a5 {[%emt 0:35:45]} 42. Ne3 {[%emt 0:04:38]} Rg1 {[%emt 0:00:37]} 43. Bd1 {[%emt 0:00:25]} a4 {[%emt 0:04:57]} 44. h5 {[%emt 0:00:00]} a3 {[%emt 0:00:00]} 45. bxa3 {[%emt 0:00:00]} Re1 {[%emt 0:00:00]} 46. Bg4 {[%emt 0:00:00]} Qxe3 {[%emt 0:00:00]} 47. Bf5+ {[%emt 0:00:00]} Kh8 {[%emt 0:00:00]} 48. Qb8+ {[%emt 0:00:00]} Rg8 {[%emt 0:00:00]} 49. Qe5+ {[%emt 0:00:00]} Rg7 {[%emt 0:00:00]} 50. Qb8+ {[%emt 0:00:00]} Rg8 {[%emt 0:00:00]} 51. Qe5+ {[%emt 0:00:00]} Rg7 {[%emt 0:00:00]} 52. Qb8+ {[%emt 0:06:21]} 1/2-1/2

[Event "94th FRA-ch Accession 2019"]
[Site "Chartres"]
[Date "2019.08.25"]
[Round "9.5"]
[White "Joie, Sebastien"]
[Black "Housieaux, David"]
[Result "1/2-1/2"]
[ECO "A49"]
[WhiteElo "2413"]
[BlackElo "2402"]
[Annotator "ChessBase"]
[PlyCount "140"]
[EventDate "2019.08.17"]
[EventType "swiss"]
[EventCountry "FRA"]
[SourceTitle "playchess.com"]
[Source "ChessBase"]
[SourceQuality "1"]
[TimeControl "40/5400+30:1800+30"]

1. Nf3 {[%emt 0:00:00]} Nf6 {[%emt 0:00:05]} 2. g3 {[%emt 0:00:00]} g6 {[%emt 0:04:21]} 3. Bg2 {[%emt 0:00:54]} Bg7 {[%emt 0:00:58]} 4. O-O {[%emt 0:00:09]} O-O {[%emt 0:00:38]} 5. d4 {[%emt 0:00:05]} d6 {[%emt 0:04:56]} 6. b3 {[%emt 0:00:17]} Bf5 {[%emt 0:06:40]} 7. Bb2 {[%emt 0:03:08]} Nc6 {[%emt 0:08:56]} 8. d5 {[%emt 0:09:47]} Nb4 {[%emt 0:01:48]} 9. Nd4 {[%emt 0:02:58]} Be4 {[%emt 0:00:42]} 10. c4 {[%emt 0:02:13]} c5 {[%emt 0:04:10]} 11. dxc6 {[%emt 0:00:17]} Bxg2 {[%emt 0:00:46]} 12. Kxg2 {[%emt 0:00:15]} Nxc6 {[%emt 0:00:14]} 13. Nc3 {[%emt 0:01:24]} Qb6 {[%emt 0:18:18]} 14. Nc2 {[%emt 0:02:55]} Rfd8 {[%emt 0:04:18]} 15. Ne3 {[%emt 0:00:25]} e6 {[%emt 0:00:39]} 16. Rb1 {[%emt 0:03:05]} Ne7 {[%emt 0:05:26]} 17. Qc2 {[%emt 0:13:07]} a6 {[%emt 0:09:23]} 18. Kg1 {[%emt 0:01:44]} Qc6 {[%emt 0:01:38]} 19. Rfc1 {[%emt 0:04:50]} h5 {[%emt 0:01:59]} 20. Qd1 {[%emt 0:02:38]} Rac8 {[%emt 0:03:29]} 21. Qf1 {[%emt 0:01:23]} Ne4 {[%emt 0:02:12]} 22. Ned5 {[%emt 0:04:13]} exd5 {[%emt 0:03:45]} 23. cxd5 {[%emt 0:01:38]} Nxg3 {[%emt 0:01:24]} 24. dxc6 {[%emt 0:00:36]} Nxf1 {[%emt 0:00:05]} 25. cxb7 {[%emt 0:00:17]} Rb8 {[%emt 0:01:40]} 26. Kxf1 {[%emt 0:00:16]} Rxb7 {[%emt 0:00:03]} 27. e3 {[%emt 0:05:37]} Rb4 {[%emt 0:02:54]} 28. Rc2 {[%emt 0:03:34]} Rh4 {[%emt 0:03:05]} 29. Kg2 {[%emt 0:04:08]} Rg4+ {[%emt 0:01:18]} 30. Kf3 {[%emt 0:03:12]} Rc8 {[%emt 0:00:18]} 31. Rbc1 {[%emt 0:04:16]} Rc5 {[%emt 0:00:07]} 32. Ba3 {[%emt 0:00:40]} Rf5+ {[%emt 0:02:31]} 33. Ke2 {[%emt 0:00:02]} Rg2 {[%emt 0:04:15]} 34. Ne4 {[%emt 0:05:42]} d5 {[%emt 0:00:07]} 35. Kf1 {[%emt 0:00:06]} Rxh2 {[%emt 0:00:17]} 36. Ng3 {[%emt 0:03:59]} Re5 {[%emt 0:00:12]} 37. Kg1 {[%emt 0:05:03]} Rh4 {[%emt 0:00:34]} 38. Rc7 {[%emt 0:00:57]} Nf5 {[%emt 0:01:41]} 39. Ne2 {[%emt 0:02:47]} Nh6 {[%emt 0:00:42]} 40. Be7 {[%emt 0:05:14]} Rg4+ {[%emt 0:00:53]} 41. Kf1 {[%emt 0:30:02]} Nf5 {[%emt 0:13:52]} 42. Rc8+ {[%emt 0:00:00]} Kh7 {[%emt 0:00:08]} 43. Bc5 {[%emt 0:00:00]} h4 {[%emt 0:20:03]} 44. Nf4 g5 {[%emt 0:00:00]} 45. Nd3 {[%emt 0:00:00]} Re6 {[%emt 0:00:00]} 46. Rd8 {[%emt 0:00:00]} d4 {[%emt 0:01:30]} 47. Rd5 {[%emt 0:09:37]} dxe3 {[%emt 0:00:00]} 48. f3 {[%emt 0:00:00]} Ng3+ {[%emt 0:00:00]} 49. Kg2 {[%emt 0:00:00]} Ne2+ {[%emt 0:00:00]} 50. fxg4 {[%emt 0:00:00]} Nxc1 {[%emt 0:00:00]} 51. Nxc1 {[%emt 0:00:00]} e2 {[%emt 0:00:00]} 52. Nd3 {[%emt 0:00:00]} e1=Q {[%emt 0:00:45]} 53. Nxe1 {[%emt 0:00:00]} Rxe1 {[%emt 0:00:01]} 54. Rxg5 {[%emt 0:00:00]} Re2+ {[%emt 0:00:26]} 55. Kf3 {[%emt 0:00:00]} Rxa2 {[%emt 0:00:03]} 56. Rh5+ {[%emt 0:00:00]} Kg6 57. Rxh4 {[%emt 0:00:00]} Rc2 {[%emt 0:00:16]} 58. Be3 {[%emt 0:00:00]} Rc3 {[%emt 0:00:17]} 59. g5 {[%emt 0:00:00]} Bf8 {[%emt 0:01:44]} 60. b4 {[%emt 0:00:00]} Rb3 {[%emt 0:00:04]} 61. Rh8 {[%emt 0:00:00]} Bxb4 {[%emt 0:00:52]} 62. Ke4 {[%emt 0:00:00]} a5 {[%emt 0:01:33]} 63. Rh6+ {[%emt 0:00:00]} Kg7 {[%emt 0:00:00]} 64. Ra6 {[%emt 0:00:00]} Bc3 {[%emt 0:00:48]} 65. Rc6 {[%emt 0:00:00]} Bb2 {[%emt 0:00:08]} 66. Rc2 {[%emt 0:00:00]} Rb4+ {[%emt 0:00:35]} 67. Kd3 {[%emt 0:00:00]} Rb3+ {[%emt 0:00:35]} 68. Ke4 {[%emt 0:00:00]} Rb4+ {[%emt 0:00:02]} 69. Kd3 {[%emt 0:00:00]} Kg6 {[%emt 0:01:28]} 70. Rc6+ {[%emt 0:00:00]} Kg7 {[%emt 0:00:58]} 1/2-1/2

[Event "94th FRA-ch Accession 2019"]
[Site "Chartres"]
[Date "2019.08.25"]
[Round "9.6"]
[White "Travadon, Loic"]
[Black "Barseghyan, Harutyun"]
[Result "1-0"]
[ECO "A09"]
[WhiteElo "2399"]
[BlackElo "2519"]
[Annotator "ChessBase"]
[PlyCount "87"]
[EventDate "2019.08.17"]
[EventType "swiss"]
[EventCountry "FRA"]
[SourceTitle "playchess.com"]
[Source "ChessBase"]
[SourceQuality "1"]
[TimeControl "40/5400+30:1800+30"]

1. Nf3 {[%emt 0:00:00]} d5 {[%emt 0:00:00]} 2. c4 {[%emt 0:00:14]} dxc4 {[%emt 0:01:06]} 3. e3 {[%emt 0:00:04]} Be6 {[%emt 0:00:09]} 4. b3 {[%emt 0:02:17]} cxb3 {[%emt 0:01:44]} 5. axb3 {[%emt 0:00:06]} Nf6 {[%emt 0:01:42]} 6. Bb2 {[%emt 0:01:00]} Bg4 {[%emt 0:06:32]} 7. h3 {[%emt 0:01:08]} Bxf3 {[%emt 0:01:22]} 8. Qxf3 {[%emt 0:00:10]} c6 {[%emt 0:01:07]} 9. Nc3 {[%emt 0:00:27]} Nbd7 {[%emt 0:00:22]} 10. g4 {[%emt 0:03:07]} e6 {[%emt 0:03:25]} 11. g5 {[%emt 0:01:45]} Nd5 {[%emt 0:01:42]} 12. Nxd5 {[%emt 0:02:33]} cxd5 {[%emt 0:03:37]} 13. h4 {[%emt 0:00:40]} Qb6 {[%emt 0:02:17]} 14. Qd1 {[%emt 0:29:08]} Nc5 {[%emt 0:05:53]} 15. b4 {[%emt 0:01:00]} Qxb4 {[%emt 0:01:09]} 16. Bc3 {[%emt 0:02:04]} Qb3 {[%emt 0:04:49]} 17. Qc1 {[%emt 0:00:48]} a6 {[%emt 0:00:43]} 18. Rb1 {[%emt 0:00:33]} Qa4 {[%emt 0:01:15]} 19. Bxg7 {[%emt 0:08:16]} Bxg7 {[%emt 0:03:29]} 20. Qxc5 {[%emt 0:00:04]} Qc6 {[%emt 0:01:40]} 21. Qxc6+ {[%emt 0:00:06]} bxc6 {[%emt 0:00:02]} 22. h5 {[%emt 0:04:15]} a5 {[%emt 0:06:34]} 23. h6 {[%emt 0:00:13]} Bf8 {[%emt 0:00:09]} 24. Bd3 {[%emt 0:00:40]} Bb4 {[%emt 0:03:09]} 25. f4 {[%emt 0:01:23]} Ke7 {[%emt 0:01:51]} 26. Ke2 {[%emt 0:00:10]} c5 {[%emt 0:00:09]} 27. Bc2 {[%emt 0:01:40]} a4 {[%emt 0:01:52]} 28. f5 {[%emt 0:03:09]} a3 {[%emt 0:05:01]} 29. Ra1 {[%emt 0:02:57]} Rag8 {[%emt 0:02:29]} 30. Rh5 {[%emt 0:05:45]} exf5 {[%emt 0:01:05]} 31. Bxf5 {[%emt 0:00:13]} f6 {[%emt 0:01:56]} 32. gxf6+ {[%emt 0:00:05]} Kxf6 {[%emt 0:00:01]} 33. Bh3 {[%emt 0:01:01]} Rg5 {[%emt 0:00:46]} 34. Rf1+ {[%emt 0:00:08]} Kg6 {[%emt 0:00:02]} 35. Bf5+ {[%emt 0:00:05]} Rxf5 {[%emt 0:02:36]} 36. Rhxf5 {[%emt 0:00:14]} Kxh6 {[%emt 0:03:49]} 37. Rg1 {[%emt 0:02:50]} Re8 {[%emt 0:00:33]} 38. Rxd5 {[%emt 0:01:57]} Re6 {[%emt 0:00:14]} 39. Rh1+ {[%emt 0:00:47]} Kg6 {[%emt 0:00:14]} 40. Rdh5 {[%emt 0:00:29]} Re7 {[%emt 0:01:13]} 41. Rh6+ {[%emt 0:30:22]} Kf5 {[%emt 0:30:02]} 42. Kf3 {[%emt 0:00:12]} Rg7 {[%emt 0:01:01]} 43. R1h5+ {[%emt 0:00:43]} Rg5 {[%emt 0:00:07]} 44. e4+ {[%emt 0:00:04]} 1-0